[Event "FIDE Open Sachove Univerzity QCC"]
[Site "Ceske Budejovice"]
[Date "2020.07.10"]
[Round "5.14"]
[White "Kroulik, Vaclav"]
[Black "Josko, Jiri"]
[Result "1/2-1/2"]
[ECO "B01"]
[WhiteElo "1442"]
[BlackElo "1649"]
[Annotator "NA RC"]
[PlyCount "38"]
[EventDate "2020.07.01"]
[EventType "swiss"]
[EventCountry "CZE"]
[TimeControl "40/5400+30:1800+30"]

1. e4 {[%emt 0:00:00]} d5 {[%emt 0:00:41]} 2. exd5 {[%emt 0:00:00]} Nf6 {[%emt 0:00:18]} 3. Bb5+ {[%emt 0:00:17]} Bd7 {[%emt 0:00:28]} 4. Be2 {[%emt 0:00:15]} Nxd5 {[%emt 0:00:20]} 5. d4 {[%emt 0:02:02]} g6 {[%emt 0:00:29]} 6. Nf3 {[%emt 0:00:23]} Bg7 {[%emt 0:00:12]} 7. O-O {[%emt 0:00:38]} O-O {[%emt 0:01:55]} 8. c4 {[%emt 0:03:54]} Nf6 {[%emt 0:03:41]} 9. Nc3 {[%emt 0:01:20]} c6 {[%emt 0:03:38]} 10. b4 {[%emt 0:09:53]} Bf5 {[%emt 0:06:18]} 11. Bd3 {[%emt 0:12:12]} Bg4 {[%emt 0:03:22]} 12. Be3 {[%emt 0:06:27]} Nbd7 {[%emt 0:02:26]} 13. Be2 {[%emt 0:07:56]} Re8 {[%emt 0:13:42]} 14. Qc2 {[%emt 0:05:47]} Qc7 {[%emt 0:17:54]} 15. Rad1 {[%emt 0:07:02]} Rac8 {[%emt 0:12:45]} 16. a4 {[%emt 0:04:11]} e5 {[%emt 0:02:08]} 17. dxe5 {[%emt 0:06:15]} Nxe5 {[%emt 0:03:55]} 18. Nxe5 {[%emt 0:07:03]} Bxe2 {[%emt 0:05:16]} 19. Nxe2 {[%emt 0:01:35]} Qxe5 {[%emt 0:00:54]} 1/2-1/2

[Event "FIDE Open Sachove Univerzity QCC"]
[Site "Ceske Budejovice"]
[Date "2020.07.10"]
[Round "5.16"]
[White "Cipera, Josef"]
[Black "Svadlenka, Dominik"]
[Result "1-0"]
[ECO "D00"]
[WhiteElo "1612"]
[BlackElo "1350"]
[Annotator "NA RC"]
[PlyCount "131"]
[EventDate "2020.07.01"]
[EventType "swiss"]
[EventCountry "CZE"]
[TimeControl "40/5400+30:1800+30"]

1. d4 {[%emt 0:00:00]} d5 {[%emt 0:00:00]} 2. Bf4 {[%emt 0:00:00]} c5 {[%emt 0:00:00]} 3. e3 {[%emt 0:00:42]} Qb6 {[%emt 0:00:18]} 4. b3 {[%emt 0:00:00]} Nf6 {[%emt 0:00:43]} 5. dxc5 {[%emt 0:03:30]} Qxc5 {[%emt 0:01:48]} 6. Qd3 {[%emt 0:04:41]} Nc6 {[%emt 0:01:24]} 7. Qb5 {[%emt 0:00:55]} Qxb5 {[%emt 0:02:24]} 8. Bxb5 {[%emt 0:00:06]} a6 {[%emt 0:01:04]} 9. Bxc6+ {[%emt 0:03:11]} bxc6 {[%emt 0:00:12]} 10. Ne2 {[%emt 0:02:03]} Bg4 {[%emt 0:01:14]} 11. f3 {[%emt 0:03:34]} Bh5 {[%emt 0:00:34]} 12. Kf2 {[%emt 0:03:14]} e6 {[%emt 0:01:07]} 13. c3 {[%emt 0:03:40]} Be7 {[%emt 0:03:50]} 14. Nd2 {[%emt 0:02:15]} O-O {[%emt 0:00:45]} 15. g4 {[%emt 0:03:28]} Bg6 {[%emt 0:00:16]} 16. h4 {[%emt 0:01:24]} h5 {[%emt 0:03:30]} 17. Rag1 {[%emt 0:04:03]} hxg4 {[%emt 0:01:34]} 18. fxg4 {[%emt 0:02:19]} Be4 {[%emt 0:03:20]} 19. Rh3 {[%emt 0:00:46]} Nxg4+ {[%emt 0:13:38]} 20. Rxg4 {[%emt 0:02:33]} Bf5 {[%emt 0:00:09]} 21. Rhg3 {[%emt 0:01:54]} Bxg4 {[%emt 0:00:26]} 22. Rxg4 {[%emt 0:00:08]} f5 {[%emt 0:02:38]} 23. Rg1 {[%emt 0:04:34]} Bxh4+ {[%emt 0:00:22]} 24. Kf3 {[%emt 0:00:09]} Bf6 {[%emt 0:00:34]} 25. Nd4 {[%emt 0:04:10]} e5 {[%emt 0:08:22]} 26. Ne6 {[%emt 0:01:57]} exf4 {[%emt 0:00:08]} 27. Nxf8 {[%emt 0:01:44]} fxe3 {[%emt 0:00:09]} 28. Nd7 {[%emt 0:02:46]} Be7 {[%emt 0:05:25]} 29. Nf1 {[%emt 0:02:04]} Rd8 {[%emt 0:01:10]} 30. Ne5 {[%emt 0:02:59]} Bc5 {[%emt 0:03:26]} 31. Ke2 {[%emt 0:01:12]} Rd6 {[%emt 0:05:34]} 32. Nd3 {[%emt 0:01:42]} Ba7 {[%emt 0:01:08]} 33. Rg5 {[%emt 0:01:37]} Rf6 {[%emt 0:01:14]} 34. Nf4 {[%emt 0:01:09]} Rf7 {[%emt 0:01:38]} 35. Rg6 {[%emt 0:02:44]} Rf6 {[%emt 0:04:00]} 36. Rxf6 {[%emt 0:00:39]} gxf6 {[%emt 0:00:19]} 37. Nh5 {[%emt 0:01:09]} Kf7 {[%emt 0:00:14]} 38. Nf4 {[%emt 0:01:31]} Ke7 {[%emt 0:00:41]} 39. Kd3 {[%emt 0:00:18]} Kd6 {[%emt 0:03:58]} 40. Ng3 {[%emt 0:01:19]} Ke5 {[%emt 0:08:04]} 41. Ng6+ {[%emt 0:30:26]} Ke6 {[%emt 0:30:20]} 42. Ke2 {[%emt 0:03:35]} Bb8 {[%emt 0:05:46]} 43. Nh5 {[%emt 0:02:58]} f4 {[%emt 0:02:02]} 44. Ngxf4+ {[%emt 0:00:08]} Kf5 {[%emt 0:00:21]} 45. Kxe3 {[%emt 0:01:57]} Be5 {[%emt 0:03:04]} 46. Ng7+ {[%emt 0:00:55]} Kg4 {[%emt 0:01:57]} 47. Ne2 {[%emt 0:00:31]} f5 {[%emt 0:01:04]} 48. Ne6 {[%emt 0:01:30]} a5 {[%emt 0:03:50]} 49. a3 {[%emt 0:02:34]} Bd6 {[%emt 0:01:04]} 50. b4 {[%emt 0:02:12]} axb4 {[%emt 0:00:09]} 51. axb4 {[%emt 0:02:54]} f4+ {[%emt 0:02:46]} 52. N2xf4 {[%emt 0:00:50]} d4+ {[%emt 0:01:56]} 53. Nxd4 {[%emt 0:02:20]} Bxf4+ {[%emt 0:00:17]} 54. Kd3 {[%emt 0:00:22]} Bd6 {[%emt 0:03:15]} 55. Nxc6 {[%emt 0:00:19]} Kf5 {[%emt 0:00:10]} 56. Nd4+ {[%emt 0:01:18]} Ke5 {[%emt 0:01:58]} 57. Kc4 {[%emt 0:00:05]} Bf8 {[%emt 0:00:00]} 58. b5 {[%emt 0:00:00]} Kd6 {[%emt 0:00:00]} 59. b6 {[%emt 0:00:00]} Kd7 {[%emt 0:00:00]} 60. Kb5 {[%emt 0:00:00]} Kc8 {[%emt 0:00:00]} 61. c4 {[%emt 0:00:00]} Bd6 {[%emt 0:00:00]} 62. Ka6 {[%emt 0:00:00]} Bg3 {[%emt 0:00:00]} 63. Nb5 {[%emt 0:00:00]} Kb8 {[%emt 0:00:00]} 64. c5 {[%emt 0:00:00]} Kc8 {[%emt 0:00:00]} 65. c6 {[%emt 0:00:00]} Bf4 {[%emt 0:00:00]} 66. c7 {[%emt 0:00:00]} 1-0

[Event "FIDE Open Sachove Univerzity QCC"]
[Site "Ceske Budejovice"]
[Date "2020.07.05"]
[Round "5.17"]
[White "Garabik, Marek"]
[Black "Vavrousek, Petr"]
[Result "1-0"]
[ECO "C01"]
[WhiteElo "1363"]
[BlackElo "1605"]
[Annotator "NA"]
[PlyCount "78"]
[EventDate "2020.07.01"]
[EventType "swiss"]
[EventCountry "CZE"]
[SourceTitle "playchess.com"]
[Source "ChessBase"]
[SourceQuality "1"]
[TimeControl "40/5400+30:1800+30"]

1. e4 {[%emt 0:00:00]} e6 {[%emt 0:00:00]} 2. d4 {[%emt 0:00:00]} d5 {[%emt 0:00:00]} 3. exd5 {[%emt 0:00:00]} exd5 {[%emt 0:00:02]} 4. Nc3 {[%emt 0:00:00]} Bf5 {[%emt 0:01:59]} 5. Bd3 {[%emt 0:00:19]} Bxd3 {[%emt 0:00:51]} 6. Qxd3 {[%emt 0:00:09]} c6 {[%emt 0:01:43]} 7. Bf4 {[%emt 0:01:10]} Be7 {[%emt 0:01:19]} 8. Nf3 {[%emt 0:01:51]} Nf6 {[%emt 0:00:38]} 9. O-O {[%emt 0:00:14]} O-O {[%emt 0:00:25]} 10. Rae1 {[%emt 0:01:13]} Nbd7 {[%emt 0:01:43]} 11. Bg5 {[%emt 0:03:43]} h6 {[%emt 0:01:39]} 12. Bh4 {[%emt 0:00:41]} Bd6 {[%emt 0:00:22]} 13. Ne5 {[%emt 0:02:43]} Qc7 {[%emt 0:01:58]} 14. Bg3 {[%emt 0:00:48]} Rae8 {[%emt 0:02:15]} 15. Nxd7 {[%emt 0:01:12]} Nxd7 {[%emt 0:00:56]} 16. Ne2 {[%emt 0:01:27]} Re4 {[%emt 0:01:31]} 17. Bxd6 {[%emt 0:00:32]} Qxd6 {[%emt 0:00:19]} 18. Ng3 {[%emt 0:00:06]} Rxe1 {[%emt 0:01:32]} 19. Rxe1 {[%emt 0:05:40]} Qb4 {[%emt 0:00:24]} 20. Rb1 {[%emt 0:02:56]} Re8 {[%emt 0:09:32]} 21. c3 {[%emt 0:01:02]} Qe7 {[%emt 0:01:37]} 22. Kf1 {[%emt 0:01:19]} g6 {[%emt 0:05:10]} 23. Qd2 {[%emt 0:01:03]} Qh4 {[%emt 0:06:21]} 24. Re1 {[%emt 0:01:37]} Rxe1+ {[%emt 0:02:25]} 25. Qxe1 {[%emt 0:02:49]} Kf8 {[%emt 0:00:11]} 26. h3 {[%emt 0:00:12]} Qf4 {[%emt 0:01:41]} 27. Ne2 {[%emt 0:00:49]} Qe4 {[%emt 0:06:19]} 28. Qd1 {[%emt 0:02:02]} Nf6 {[%emt 0:01:30]} 29. Ng3 {[%emt 0:00:46]} Qf4 {[%emt 0:00:56]} 30. Qc2 {[%emt 0:06:34]} h5 {[%emt 0:02:04]} 31. Ne2 {[%emt 0:01:12]} Qh2 {[%emt 0:01:02]} 32. f3 {[%emt 0:00:21]} h4 {[%emt 0:05:49]} 33. Kf2 {[%emt 0:06:23]} Nh5 {[%emt 0:01:29]} 34. a3 {[%emt 0:01:55]} Nf4 {[%emt 0:03:46]} 35. Nxf4 {[%emt 0:01:46]} Qxf4 {[%emt 0:00:24]} 36. Qb3 {[%emt 0:00:13]} Qc7 {[%emt 0:06:28]} 37. c4 {[%emt 0:01:19]} Ke7 {[%emt 0:06:26]} 38. cxd5 {[%emt 0:02:58]} cxd5 {[%emt 0:00:00]} 39. Qxd5 {[%emt 0:06:37]} g5 {[%emt 0:01:11]} 1-0

[Event "FIDE Open Sachove Univerzity QCC"]
[Site "Ceske Budejovice"]
[Date "2020.07.09"]
[Round "5.17"]
[White "Garabik, Marek"]
[Black "Vavrousek, Petr"]
[Result "1-0"]
[ECO "C01"]
[WhiteElo "1363"]
[BlackElo "1605"]
[Annotator "NA RC"]
[PlyCount "97"]
[EventDate "2020.07.01"]
[EventType "swiss"]
[EventCountry "CZE"]
[TimeControl "40/5400+30:1800+30"]

1. e4 {[%emt 0:00:00]} e6 {[%emt 0:00:00]} 2. d4 {[%emt 0:00:00]} d5 {[%emt 0:00:00]} 3. exd5 {[%emt 0:00:00]} exd5 {[%emt 0:00:02]} 4. Nc3 {[%emt 0:00:00]} Bf5 {[%emt 0:01:59]} 5. Bd3 {[%emt 0:00:19]} Bxd3 {[%emt 0:00:51]} 6. Qxd3 {[%emt 0:00:09]} c6 {[%emt 0:01:43]} 7. Bf4 {[%emt 0:01:10]} Be7 {[%emt 0:01:19]} 8. Nf3 {[%emt 0:01:51]} Nf6 {[%emt 0:00:38]} 9. O-O {[%emt 0:00:14]} O-O {[%emt 0:00:25]} 10. Rae1 {[%emt 0:01:13]} Nbd7 {[%emt 0:01:43]} 11. Bg5 {[%emt 0:03:43]} h6 {[%emt 0:01:39]} 12. Bh4 {[%emt 0:00:41]} Bd6 {[%emt 0:00:22]} 13. Ne5 {[%emt 0:02:43]} Qc7 {[%emt 0:01:58]} 14. Bg3 {[%emt 0:00:48]} Rae8 {[%emt 0:02:15]} 15. Nxd7 {[%emt 0:01:12]} Nxd7 {[%emt 0:00:56]} 16. Ne2 {[%emt 0:01:27]} Re4 {[%emt 0:01:31]} 17. Bxd6 {[%emt 0:00:32]} Qxd6 {[%emt 0:00:19]} 18. Ng3 {[%emt 0:00:06]} Rxe1 {[%emt 0:01:32]} 19. Rxe1 {[%emt 0:05:40]} Qb4 {[%emt 0:00:24]} 20. Rb1 {[%emt 0:02:56]} Re8 {[%emt 0:09:32]} 21. c3 {[%emt 0:01:02]} Qe7 {[%emt 0:01:37]} 22. Kf1 {[%emt 0:01:19]} g6 {[%emt 0:05:10]} 23. Qd2 {[%emt 0:01:03]} Qh4 {[%emt 0:06:21]} 24. Re1 {[%emt 0:01:37]} Rxe1+ {[%emt 0:02:25]} 25. Qxe1 {[%emt 0:02:49]} Kf8 {[%emt 0:00:11]} 26. h3 {[%emt 0:00:12]} Qf4 {[%emt 0:01:41]} 27. Ne2 {[%emt 0:00:49]} Qe4 {[%emt 0:06:19]} 28. Qd1 {[%emt 0:02:02]} Nf6 {[%emt 0:01:30]} 29. Ng3 {[%emt 0:00:46]} Qf4 {[%emt 0:00:56]} 30. Qc2 {[%emt 0:06:34]} h5 {[%emt 0:02:04]} 31. Ne2 {[%emt 0:01:12]} Qh2 {[%emt 0:01:02]} 32. f3 {[%emt 0:00:21]} h4 {[%emt 0:05:49]} 33. Kf2 {[%emt 0:06:23]} Nh5 {[%emt 0:01:29]} 34. a3 {[%emt 0:01:55]} Nf4 {[%emt 0:03:46]} 35. Nxf4 {[%emt 0:01:46]} Qxf4 {[%emt 0:00:24]} 36. Qb3 {[%emt 0:00:13]} Qc7 {[%emt 0:06:28]} 37. c4 {[%emt 0:01:19]} dxc4 {[%emt 0:06:26]} 38. Qxc4 {[%emt 0:02:58]} Qd6 {[%emt 0:00:00]} 39. Qc5 {[%emt 0:06:37]} Qxc5 {[%emt 0:01:11]} 40. dxc5 {[%emt 0:44:19]} b6 {[%emt 0:26:03]} 41. cxb6 {[%emt 0:30:30]} axb6 {[%emt 0:30:30]} 42. Ke3 {[%emt 0:00:30]} g5 {[%emt 0:00:30]} 43. Ke4 {[%emt 0:00:30]} Ke7 {[%emt 0:00:30]} 44. Kf5 {[%emt 0:00:30]} f6 {[%emt 0:00:30]} 45. f4 {[%emt 0:00:30]} gxf4 {[%emt 0:00:30]} 46. Kxf4 {[%emt 0:00:30]} Ke6 {[%emt 0:00:30]} 47. Kg4 {[%emt 0:00:30]} Ke5 {[%emt 0:00:30]} 48. Kxh4 {[%emt 0:00:30]} f5 {[%emt 0:00:30]} 49. Kg5 {[%emt 0:00:30]} 1-0

[Event "FIDE Open Sachove Univerzity QCC"]
[Site "Ceske Budejovice"]
[Date "2020.07.09"]
[Round "5.18"]
[White "Tajovsky, Simon"]
[Black "Karweit, Alex W"]
[Result "1-0"]
[ECO "D35"]
[WhiteElo "1594"]
[BlackElo "1579"]
[Annotator "NA"]
[PlyCount "44"]
[EventDate "2020.07.01"]
[EventType "swiss"]
[EventCountry "CZE"]
[TimeControl "40/5400+30:1800+30"]

1. d4 {[%emt 0:00:00]} Nf6 {[%emt 0:00:00]} 2. c4 {[%emt 0:00:00]} e6 {[%emt 0:00:29]} 3. Nc3 {[%emt 0:00:00]} d5 {[%emt 0:00:17]} 4. Nf3 {[%emt 0:00:15]} Be7 {[%emt 0:00:14]} 5. Bf4 {[%emt 0:00:11]} O-O {[%emt 0:00:36]} 6. e3 {[%emt 0:00:13]} Nbd7 {[%emt 0:02:11]} 7. cxd5 {[%emt 0:00:46]} exd5 {[%emt 0:01:10]} 8. Bd3 {[%emt 0:00:42]} c6 {[%emt 0:01:41]} 9. O-O {[%emt 0:00:15]} Re8 {[%emt 0:03:12]} 10. h3 {[%emt 0:01:22]} b6 {[%emt 0:01:24]} 11. Rb1 {[%emt 0:04:18]} c5 {[%emt 0:11:02]} 12. Nb5 {[%emt 0:04:18]} Ba6 {[%emt 0:06:09]} 13. Nc7 {[%emt 0:01:20]} Bxd3 {[%emt 0:01:17]} 14. Qxd3 {[%emt 0:00:10]} c4 {[%emt 0:00:40]} 15. Qc2 {[%emt 0:01:06]} Ne4 {[%emt 0:01:02]} 16. Nxd5 {[%emt 0:01:08]} Nd6 {[%emt 0:00:38]} 17. Nxe7+ {[%emt 0:00:50]} Qxe7 {[%emt 0:00:19]} 18. Bxd6 {[%emt 0:01:16]} Qxd6 {[%emt 0:00:39]} 19. Qxc4 {[%emt 0:00:20]} Nf6 {[%emt 0:02:24]} 20. Ne5 {[%emt 0:02:49]} Re6 {[%emt 0:04:12]} 21. Rbc1 {[%emt 0:03:36]} Ne8 {[%emt 0:05:28]} 22. Qc6 {[%emt 0:04:30]} Qb4 {[%emt 0:00:48]} 1-0

[Event "FIDE Open Sachove Univerzity QCC"]
[Site "Ceske Budejovice"]
[Date "2020.07.10"]
[Round "5.19"]
[White "Havelkova, Beata"]
[Black "Zachar, Jaroslav"]
[Result "1-0"]
[ECO "C09"]
[WhiteElo "1394"]
[BlackElo "1831"]
[Annotator "NA RC"]
[PlyCount "87"]
[EventDate "2020.07.01"]
[EventType "swiss"]
[EventCountry "CZE"]
[TimeControl "40/5400+30:1800+30"]

1. e4 {[%emt 0:00:00]} e6 {[%emt 0:02:51]} 2. d4 {[%emt 0:01:53]} d5 {[%emt 0:01:44]} 3. Nd2 {[%emt 0:00:19]} c5 {[%emt 0:00:44]} 4. Ngf3 {[%emt 0:00:24]} Nc6 {[%emt 0:00:23]} 5. exd5 {[%emt 0:00:38]} exd5 {[%emt 0:00:14]} 6. Bb5 {[%emt 0:01:16]} a6 {[%emt 0:03:48]} 7. Bd3 {[%emt 0:06:29]} Nf6 {[%emt 0:03:40]} 8. O-O {[%emt 0:02:11]} c4 {[%emt 0:01:55]} 9. Re1+ {[%emt 0:04:35]} Be7 {[%emt 0:01:51]} 10. Bf1 {[%emt 0:01:44]} O-O {[%emt 0:00:28]} 11. c3 {[%emt 0:05:49]} Bg4 {[%emt 0:03:29]} 12. h3 {[%emt 0:02:22]} Bh5 {[%emt 0:00:30]} 13. g4 {[%emt 0:03:03]} Bg6 {[%emt 0:10:36]} 14. Ne5 {[%emt 0:01:23]} Nd7 {[%emt 0:10:36]} 15. Qf3 {[%emt 0:10:05]} Ndxe5 {[%emt 0:02:30]} 16. dxe5 {[%emt 0:00:45]} f5 {[%emt 0:02:55]} 17. Bg2 {[%emt 0:02:59]} Bh4 {[%emt 0:09:16]} 18. Qxd5+ {[%emt 0:03:08]} Kh8 {[%emt 0:00:17]} 19. Qxd8 {[%emt 0:01:22]} Raxd8 {[%emt 0:00:14]} 20. Nf3 {[%emt 0:00:46]} Be7 {[%emt 0:00:26]} 21. Be3 {[%emt 0:02:32]} Rd3 {[%emt 0:02:20]} 22. Nd4 {[%emt 0:04:11]} Nxe5 {[%emt 0:02:02]} 23. Bf4 {[%emt 0:03:04]} Rxd4 {[%emt 0:08:11]} 24. cxd4 {[%emt 0:01:11]} Nd3 {[%emt 0:00:33]} 25. Rxe7 {[%emt 0:00:42]} Nxf4 {[%emt 0:00:02]} 26. Rd1 {[%emt 0:04:34]} fxg4 {[%emt 0:00:40]} 27. hxg4 {[%emt 0:00:22]} Bd3 {[%emt 0:04:37]} 28. Bf1 {[%emt 0:02:10]} g5 {[%emt 0:03:23]} 29. Rxb7 {[%emt 0:02:17]} Rd8 {[%emt 0:00:17]} 30. Re1 {[%emt 0:01:06]} Kg8 {[%emt 0:00:59]} 31. Re5 {[%emt 0:02:40]} h6 {[%emt 0:00:59]} 32. Rc5 {[%emt 0:01:30]} Ne6 {[%emt 0:01:13]} 33. Rxc4 {[%emt 0:04:12]} Bxf1 {[%emt 0:05:03]} 34. Kxf1 {[%emt 0:00:12]} Nxd4 {[%emt 0:00:07]} 35. a4 {[%emt 0:01:21]} Nf3 {[%emt 0:00:09]} 36. Rc6 {[%emt 0:01:06]} Nh2+ {[%emt 0:00:19]} 37. Kg2 {[%emt 0:00:56]} Nxg4 {[%emt 0:00:03]} 38. Re6 {[%emt 0:01:19]} Rf8 {[%emt 0:00:22]} 39. f3 {[%emt 0:02:08]} Nf6 {[%emt 0:00:11]} 40. Rxa6 {[%emt 0:00:27]} h5 {[%emt 0:01:39]} 41. Raa7 {[%emt 0:31:32]} g4 {[%emt 0:30:25]} 42. fxg4 {[%emt 0:01:02]} hxg4 {[%emt 0:00:02]} 43. Rg7+ {[%emt 0:00:39]} Kh8 {[%emt 0:00:11]} 44. b4 {[%emt 0:00:47]} 1-0

[Event "FIDE Open Sachove Univerzity QCC"]
[Site "Ceske Budejovice"]
[Date "2020.07.10"]
[Round "5.20"]
[White "Kral, Ladislav"]
[Black "Valtr, Filip"]
[Result "0-1"]
[ECO "B41"]
[WhiteElo "1493"]
[BlackElo "1784"]
[Annotator "NA RC"]
[PlyCount "50"]
[EventDate "2020.07.01"]
[EventType "swiss"]
[EventCountry "CZE"]
[TimeControl "40/5400+30:1800+30"]

1. e4 {[%emt 0:00:00]} c5 {[%emt 0:00:00]} 2. Nf3 {[%emt 0:00:00]} e6 {[%emt 0:00:21]} 3. d4 {[%emt 0:00:00]} cxd4 {[%emt 0:00:05]} 4. Nxd4 {[%emt 0:00:05]} a6 {[%emt 0:00:09]} 5. a4 {[%emt 0:01:51]} Nf6 {[%emt 0:02:42]} 6. Bd3 {[%emt 0:01:07]} Qc7 {[%emt 0:04:12]} 7. O-O {[%emt 0:06:45]} Bd6 {[%emt 0:06:03]} 8. h3 {[%emt 0:05:39]} Nc6 {[%emt 0:01:13]} 9. c3 {[%emt 0:01:43]} h6 {[%emt 0:07:59]} 10. Nxc6 {[%emt 0:01:12]} dxc6 {[%emt 0:00:13]} 11. f4 {[%emt 0:00:16]} Bc5+ {[%emt 0:07:45]} 12. Kh1 {[%emt 0:01:11]} O-O {[%emt 0:01:50]} 13. Qe2 {[%emt 0:02:42]} Rd8 {[%emt 0:01:48]} 14. b4 {[%emt 0:07:25]} Be7 {[%emt 0:02:24]} 15. Be3 {[%emt 0:02:15]} Nh5 {[%emt 0:11:32]} 16. Qxh5 {[%emt 0:08:24]} Rxd3 {[%emt 0:00:15]} 17. Qe2 {[%emt 0:00:49]} Rd7 {[%emt 0:06:48]} 18. a5 {[%emt 0:01:47]} c5 {[%emt 0:05:47]} 19. Bd2 {[%emt 0:12:14]} cxb4 {[%emt 0:06:45]} 20. cxb4 {[%emt 0:03:57]} Qc2 {[%emt 0:00:37]} 21. Rf2 {[%emt 0:06:24]} Bh4 {[%emt 0:05:28]} 22. Be3 {[%emt 0:05:14]} Qxe4 {[%emt 0:08:09]} 23. Bc5 {[%emt 0:04:30]} Qxe2 {[%emt 0:00:00]} 24. Rxe2 {[%emt 0:00:30]} Rd1+ {[%emt 0:00:26]} 25. Kh2 {[%emt 0:00:19]} Bf6 {[%emt 0:00:09]} 0-1

[Event "FIDE Open Sachove Univerzity QCC"]
[Site "Ceske Budejovice"]
[Date "2020.07.09"]
[Round "5.21"]
[White "Valasek, Jakub"]
[Black "Barta, David"]
[Result "1-0"]
[ECO "C56"]
[WhiteElo "1688"]
[BlackElo "1541"]
[Annotator "NA RC"]
[PlyCount "77"]
[EventDate "2020.07.01"]
[EventType "swiss"]
[EventCountry "CZE"]
[TimeControl "40/5400+30:1800+30"]

1. e4 {[%emt 0:00:00]} e5 {[%emt 0:00:00]} 2. Nf3 {[%emt 0:00:17]} Nf6 {[%emt 0:00:00]} 3. Bc4 {[%emt 0:01:39]} Nc6 {[%emt 0:01:11]} 4. d4 {[%emt 0:01:48]} exd4 {[%emt 0:00:42]} 5. e5 {[%emt 0:01:00]} d5 {[%emt 0:02:26]} 6. Bb5 {[%emt 0:01:16]} Ne4 {[%emt 0:02:44]} 7. Nxd4 {[%emt 0:01:19]} Bd7 {[%emt 0:01:13]} 8. Bxc6 {[%emt 0:01:13]} Bxc6 {[%emt 0:00:12]} 9. O-O {[%emt 0:01:49]} Bc5 {[%emt 0:01:44]} 10. Be3 {[%emt 0:02:25]} Qe7 {[%emt 0:02:33]} 11. f3 {[%emt 0:02:37]} Ng5 {[%emt 0:01:04]} 12. f4 {[%emt 0:05:48]} Ne6 {[%emt 0:01:53]} 13. c3 {[%emt 0:01:49]} Nxd4 {[%emt 0:00:28]} 14. cxd4 {[%emt 0:01:43]} Bb6 {[%emt 0:00:26]} 15. Nc3 {[%emt 0:04:33]} O-O-O {[%emt 0:00:40]} 16. f5 {[%emt 0:02:50]} f6 {[%emt 0:01:07]} 17. e6 {[%emt 0:01:33]} g6 {[%emt 0:00:29]} 18. Qg4 {[%emt 0:02:23]} Rhg8 {[%emt 0:01:16]} 19. Rae1 {[%emt 0:03:41]} gxf5 {[%emt 0:01:52]} 20. Qxf5 {[%emt 0:00:52]} Rg6 {[%emt 0:00:23]} 21. Ne2 {[%emt 0:07:52]} Bb5 {[%emt 0:05:28]} 22. Rf2 {[%emt 0:01:50]} Bxe2 {[%emt 0:00:36]} 23. Rfxe2 {[%emt 0:01:13]} c6 {[%emt 0:00:29]} 24. Qh3 {[%emt 0:05:30]} Rdg8 {[%emt 0:04:37]} 25. Bf2 {[%emt 0:05:08]} Rg4 {[%emt 0:04:28]} 26. Rd1 {[%emt 0:01:40]} R8g6 {[%emt 0:04:07]} 27. Qf3 {[%emt 0:02:15]} Bc7 {[%emt 0:04:29]} 28. g3 {[%emt 0:02:23]} h5 {[%emt 0:01:11]} 29. Kh1 {[%emt 0:07:18]} Kd8 {[%emt 0:08:50]} 30. a3 {[%emt 0:02:12]} Rg7 {[%emt 0:03:01]} 31. b4 {[%emt 0:01:24]} Qd6 {[%emt 0:02:24]} 32. Qxf6+ {[%emt 0:01:05]} Qe7 {[%emt 0:01:37]} 33. Qxe7+ {[%emt 0:00:55]} Kxe7 {[%emt 0:00:22]} 34. a4 {[%emt 0:02:56]} R4g6 {[%emt 0:01:06]} 35. Rde1 {[%emt 0:01:03]} Rf6 {[%emt 0:00:46]} 36. Be3 {[%emt 0:03:24]} Rxe6 {[%emt 0:00:38]} 37. Bg5+ {[%emt 0:00:55]} Rxg5 {[%emt 0:00:19]} 38. Rxe6+ {[%emt 0:00:16]} Kd7 {[%emt 0:00:15]} 39. Re7+ {[%emt 0:01:24]} 1-0

[Event "FIDE Open Sachove Univerzity QCC"]
[Site "Ceske Budejovice"]
[Date "2020.07.10"]
[Round "5.22"]
[White "Kanka, Lukas"]
[Black "Bastyr, Pavel"]
[Result "1-0"]
[ECO "B20"]
[WhiteElo "1667"]
[BlackElo "1439"]
[Annotator "NA RC"]
[PlyCount "87"]
[EventDate "2020.07.01"]
[EventType "swiss"]
[EventCountry "CZE"]
[TimeControl "40/5400+30:1800+30"]

1. e4 {[%emt 0:00:00]} c5 {[%emt 0:01:12]} 2. b4 {[%emt 0:02:16]} e5 {[%emt 0:01:16]} 3. bxc5 {[%emt 0:04:14]} Bxc5 {[%emt 0:00:15]} 4. Nf3 {[%emt 0:01:28]} Nc6 {[%emt 0:00:07]} 5. Bc4 {[%emt 0:00:53]} Nf6 {[%emt 0:01:57]} 6. d3 {[%emt 0:04:12]} d5 {[%emt 0:07:42]} 7. exd5 {[%emt 0:05:14]} Nxd5 {[%emt 0:00:11]} 8. Bxd5 {[%emt 0:03:27]} Qxd5 {[%emt 0:00:11]} 9. Nc3 {[%emt 0:00:43]} Bb4 {[%emt 0:00:49]} 10. Bd2 {[%emt 0:04:41]} Qa5 {[%emt 0:00:13]} 11. Ne4 {[%emt 0:01:50]} Bxd2+ {[%emt 0:07:37]} 12. Qxd2 {[%emt 0:02:05]} Qxd2+ {[%emt 0:00:08]} 13. Kxd2 {[%emt 0:02:47]} O-O {[%emt 0:00:08]} 14. Nd6 {[%emt 0:07:11]} Rd8 {[%emt 0:01:29]} 15. Nxc8 {[%emt 0:00:17]} Raxc8 {[%emt 0:00:07]} 16. Rab1 {[%emt 0:00:59]} b6 {[%emt 0:00:05]} 17. Rhe1 {[%emt 0:00:07]} f6 {[%emt 0:00:54]} 18. Re2 {[%emt 0:08:17]} Rd5 {[%emt 0:02:06]} 19. Ke3 {[%emt 0:06:10]} Rcd8 {[%emt 0:04:15]} 20. Rd2 {[%emt 0:02:01]} f5 {[%emt 0:10:10]} 21. c4 {[%emt 0:09:07]} R5d6 {[%emt 0:00:13]} 22. Rb5 {[%emt 0:02:31]} Re8 {[%emt 0:03:13]} 23. Rd5 {[%emt 0:04:46]} Rxd5 {[%emt 0:00:37]} 24. cxd5 {[%emt 0:00:04]} Nb4 {[%emt 0:00:08]} 25. d6 {[%emt 0:01:54]} e4 {[%emt 0:03:28]} 26. d7 {[%emt 0:01:12]} Rd8 {[%emt 0:01:05]} 27. dxe4 {[%emt 0:04:26]} fxe4 {[%emt 0:00:20]} 28. Ne5 {[%emt 0:00:15]} Nd3 {[%emt 0:01:03]} 29. Nxd3 {[%emt 0:08:19]} exd3 {[%emt 0:00:54]} 30. Rxd3 {[%emt 0:00:23]} Kf7 {[%emt 0:00:07]} 31. Ke4 {[%emt 0:00:08]} Ke6 {[%emt 0:00:14]} 32. f4 {[%emt 0:00:30]} g6 {[%emt 0:01:59]} 33. g4 {[%emt 0:02:10]} Rxd7 {[%emt 0:01:41]} 34. Rxd7 {[%emt 0:00:07]} Kxd7 {[%emt 0:00:08]} 35. Kd5 {[%emt 0:00:15]} b5 {[%emt 0:26:38]} 36. Kc5 {[%emt 0:02:03]} b4 {[%emt 0:00:09]} 37. Kxb4 {[%emt 0:00:39]} Kd6 {[%emt 0:00:07]} 38. Ka5 {[%emt 0:00:15]} Kd5 {[%emt 0:00:50]} 39. f5 {[%emt 0:01:29]} gxf5 {[%emt 0:00:19]} 40. gxf5 {[%emt 0:00:03]} Ke5 {[%emt 0:00:31]} 41. Ka6 {[%emt 0:30:03]} Kxf5 {[%emt 0:30:30]} 42. Kxa7 {[%emt 0:00:04]} Ke6 {[%emt 0:00:08]} 43. Kb7 {[%emt 0:00:57]} Kd5 {[%emt 0:00:10]} 44. a4 {[%emt 0:00:05]} 1-0